bitfinex/quotes_SOLUSD_20250710
["timestamp","ask_amount","ask_price","bid_price","bid_amount"]
[1752171576670,26.0,160.62,160.6,0.71]
[1752171576823,26.0,160.62,160.59,0.71]
[1752171577022,26.0,160.61,160.6,33.02]
[1752171579151,26.0,160.61,160.6,112.02]
[1752171579347,26.99432314,160.61,160.6,79.0]
[1752171579551,26.71,160.61,160.6,112.02]
[1752171579851,26.99432314,160.61,160.6,112.02]
[1752171580425,26.99432314,160.61,160.6,79.0]
[1752171580633,26.99432314,160.61,160.6,112.0]
[1752171581434,30.73008056,160.61,160.6,112.0]
[1752171581841,30.73008056,160.61,160.6,79.0]
[1752171582041,0.28432314,160.6,160.56,105.91]
[1752171582353,30.02101118,160.57,160.56,26.91]
[1752171582565,30.73101118,160.57,160.56,59.91]
[1752171584032,30.73101118,160.57,160.56,26.91]
[1752171584366,30.73101118,160.57,160.56,59.91]
[1752171585550,26.99432314,160.57,160.56,59.91]
[1752171585752,26.99432314,160.57,160.56,0.03]
[1752171586064,26.99432314,160.57,160.56,33.03]
[1752171587363,30.73101118,160.57,160.56,33.03]
[1752171587571,30.73101118,160.57,160.56,0.03]
[1752171587741,30.73101118,160.57,160.56,33.03]
[1752171588357,26.99432314,160.57,160.56,33.03]
[1752171588580,26.28432314,160.57,160.56,33.03]
[1752171589161,26.99432314,160.57,160.56,33.03]
[1752171590256,30.73101118,160.57,160.56,33.01]
[1752171596739,30.73101118,160.57,160.56,0.03]
[1752171597052,30.73101118,160.57,160.56,33.01]
[1752171598542,30.73101118,160.57,160.56,32.99]
[1752171598850,26.28432314,160.57,160.56,33.65]
[1752171599056,30.73101118,160.57,160.56,32.99]
[1752171599566,30.02101118,160.57,160.56,32.99]
[1752171599755,26.28432314,160.57,160.56,32.99]
[1752171600064,30.73101118,160.57,160.56,32.99]
[1752171600247,30.02101118,160.57,160.56,32.99]
[1752171600446,26.28432314,160.57,160.56,32.99]
[1752171601158,3.2701,160.59,160.56,33.65]
[1752171601356,3.2701,160.59,160.57,0.66]
[1752171601940,3.2701,160.59,160.56,0.03]
[1752171602140,3.2701,160.59,160.56,0.69]
[1752171602636,7.00632422,160.59,160.56,0.69]
[1752171602837,26.0,160.57,160.56,0.03]
[1752171603062,30.02101118,160.57,160.56,0.03]
[1752171603247,30.73101118,160.57,160.56,0.03]
[1752171603853,30.73101118,160.57,160.56,32.99]
[1752171605960,30.73101118,160.57,160.56,32.97]
[1752171606159,30.73101118,160.57,160.56,0.03]
[1752171606347,30.73101118,160.57,160.56,32.97]
[1752171608665,30.73101118,160.57,160.56,0.03]
[1752171608967,30.73101118,160.57,160.56,32.97]
[1752171609151,30.73101118,160.57,160.56,0.03]
[1752171609152,30.87317275,160.57,160.56,0.03]
[1752171609348,30.87317275,160.57,160.56,32.97]
[1752171611954,30.87317275,160.57,160.56,0.03]
[1752171612155,30.87317275,160.57,160.56,32.97]
[1752171613361,47.65785672,160.57,160.56,0.03]
[1752171613566,49.83986717,160.57,160.56,0.03]
[1752171614074,0.28432314,160.52,160.48,0.66]
[1752171614281,0.28432314,160.52,160.49,0.66]
[1752171614461,0.28432314,160.52,160.49,33.58]
[1752171614865,0.28432314,160.52,160.49,0.66]
[1752171615067,0.99432314,160.52,160.49,0.66]
[1752171615272,0.99432314,160.52,160.48,79.66]
[1752171615458,0.99432314,160.52,160.49,0.66]
[1752171615865,3.73808485,160.51,160.49,0.66]
[1752171616264,4.02240799,160.51,160.5,32.92]
[1752171616465,4.02240799,160.51,160.49,0.66]
[1752171616676,4.02240799,160.51,160.48,79.0]
[1752171616677,0.99432314,160.5,160.46,105.88]
[1752171616885,26.99432314,160.5,160.46,106.54]
[1752171617062,26.28432314,160.48,160.46,79.66]
[1752171617264,0.71,160.47,160.41,79.06]
[1752171617469,29.8682,160.47,160.41,79.72]
[1752171617672,0.99432314,160.46,160.41,79.72]
[1752171617873,26.0,160.43,160.42,0.66]
[1752171618184,26.0,160.43,160.41,0.06]
[1752171618359,26.28432314,160.42,160.41,0.06]
[1752171618554,39.26365935,160.42,160.41,0.06]
[1752171619061,39.26365935,160.42,160.41,32.98]
[1752171619583,40.11582092,160.42,160.41,32.98]
[1752171619792,40.11582092,160.42,160.41,0.06]
[1752171620093,43.85600294,160.42,160.41,32.98]
[1752171621475,39.97365935,160.42,160.41,32.98]
[1752171621661,39.26365935,160.42,160.41,33.64]
[1752171621873,13.01836335,160.46,160.41,33.64]
[1752171622181,26.0,160.43,160.42,0.66]
[1752171622766,3.73860857,160.49,160.42,79.66]
[1752171622965,3.73860857,160.49,160.43,0.66]
[1752171623168,26.0,160.48,160.44,32.92]
[1752171623367,0.28432314,160.47,160.44,32.92]
[1752171623591,0.28432314,160.47,160.45,0.66]
[1752171623788,3.73831775,160.5,160.46,0.66]
[1752171624078,26.28432314,160.47,160.46,0.66]
[1752171624458,26.14216157,160.47,160.46,0.66]
[1752171624975,39.26751925,160.47,160.46,0.66]
[1752171625177,39.26751925,160.47,160.44,0.66]
[1752171625371,39.26751925,160.47,160.42,79.0]
[1752171625372,39.26751925,160.47,160.45,33.58]
[1752171625574,39.26751925,160.47,160.46,0.66]
[1752171625972,38.98319611,160.47,160.46,0.66]
[1752171627096,26.0,160.48,160.46,0.66]
[1752171627766,13.07014784,160.48,160.46,0.66]
[1752171627973,4.4476989,160.53,160.46,0.66]
[1752171628178,0.28432314,160.52,160.46,0.66]
[1752171628387,26.28432314,160.52,160.46,0.66]
[1752171628589,39.71994082,160.52,160.46,0.66]
[1752171628962,43.45784279,160.52,160.46,0.66]
[1752171630190,46.58801316,160.52,160.46,0.66]
[1752171630373,0.81216157,160.51,160.45,79.0]
[1752171630891,0.81216157,160.51,160.44,0.71]
[1752171631190,26.28432314,160.49,160.44,0.71]
[1752171632176,26.28432314,160.49,160.45,32.92]
[1752171632390,26.28432314,160.49,160.46,0.71]
[1752171632601,26.0,160.49,160.46,0.71]
[1752171632901,0.28432314,160.5,160.46,0.71]
[1752171633079,26.0,160.51,160.46,0.71]
[1752171633471,26.0,160.49,160.46,0.71]
[1752171634295,0.28432314,160.48,160.45,0.71]
[1752171634496,26.0,160.49,160.46,33.63]
[1752171634800,26.0,160.49,160.47,33.61]
[1752171635103,26.28432314,160.51,160.48,32.9]
[1752171635302,26.28432314,160.51,160.48,0.71]
[1752171635594,30.02241903,160.51,160.48,0.71]
[1752171635775,26.28432314,160.51,160.48,0.71]
[1752171635977,26.28432314,160.51,160.49,0.71]
[1752171636188,26.28432314,160.51,160.47,79.0]
[1752171636383,26.28432314,160.51,160.48,0.71]
[1752171636724,26.28432314,160.51,160.49,32.9]
[1752171636899,26.28432314,160.51,160.48,0.71]
[1752171637395,26.0,160.5,160.49,0.71]
[1752171637576,26.0,160.5,160.48,79.0]
[1752171637776,26.0,160.52,160.48,79.0]
[1752171638299,26.0,160.52,160.49,0.71]
[1752171638486,26.0,160.52,160.5,32.9]
[1752171638696,26.0,160.52,160.5,33.61]
[1752171639003,0.28432314,160.53,160.5,32.9]
[1752171639208,4.02197055,160.53,160.48,79.71]
[1752171639518,26.0,160.5,160.49,0.71]
[1752171640371,26.0,160.52,160.49,0.71]
[1752171640584,26.0,160.51,160.5,0.71]
[1752171641008,26.0,160.51,160.5,33.61]
[1752171641305,26.0,160.51,160.5,112.61]
[1752171642713,26.0,160.51,160.5,79.0]
[1752171642909,26.67,160.51,160.5,79.0]
[1752171643987,26.0,160.51,160.5,79.0]
[1752171644203,26.28432314,160.51,160.5,79.0]
[1752171644596,26.95432314,160.51,160.5,111.88]
[1752171644800,30.69240799,160.51,160.5,111.88]
[1752171645313,30.83456956,160.51,160.5,79.0]
[1752171645623,30.83456956,160.51,160.44,106.61]
[1752171645624,26.28432314,160.5,160.44,106.61]
[1752171645791,30.02279153,160.5,160.45,33.59]
[1752171645997,30.69279153,160.5,160.46,33.59]
[1752171646203,30.69279153,160.5,160.46,0.71]
[1752171647334,0.67,160.49,160.44,106.61]
[1752171647617,30.02279153,160.5,160.45,0.71]
[1752171647801,30.69279153,160.5,160.46,0.71]
[1752171647988,26.95432314,160.5,160.46,0.71]
[1752171648314,30.69264389,160.5,160.46,0.71]
[1752171648820,26.95432314,160.5,160.46,0.71]
[1752171649192,26.28432314,160.5,160.47,0.71]
[1752171649397,26.28432314,160.5,160.44,105.9]
[1752171649630,26.28432314,160.5,160.48,0.71]
[1752171650105,26.28432314,160.5,160.49,32.88]
[1752171650413,26.28432314,160.5,160.46,79.74]
[1752171650589,26.28432314,160.5,160.47,0.71]
[1752171651189,26.95432314,160.5,160.47,0.71]
[1752171651816,26.95432314,160.5,160.46,79.03]
[1752171651817,26.28432314,160.5,160.48,0.71]
[1752171652018,26.28432314,160.5,160.46,79.03]
[1752171652394,26.28432314,160.5,160.47,33.59]
[1752171652712,26.28432314,160.5,160.48,0.71]
[1752171653017,26.0,160.5,160.49,0.71]
[1752171653521,26.0,160.5,160.48,79.0]
[1752171653522,26.28432314,160.5,160.48,79.0]
[1752171653821,26.0,160.5,160.49,0.71]
[1752171653999,26.0,160.5,160.48,79.0]
[1752171654196,26.0,160.5,160.48,79.71]
[1752171654599,26.0,160.5,160.49,0.71]
[1752171655198,26.0,160.5,160.49,33.59]
[1752171656527,26.0,160.5,160.49,112.57]
[1752171656694,16.32159969,160.53,160.49,112.57]
[1752171657025,26.0,160.51,160.5,0.71]
[1752171657210,26.0,160.51,160.5,33.57]
[1752171659502,26.0,160.51,160.5,112.57]
[1752171661705,26.0,160.52,160.5,112.57]
[1752171662030,26.0,160.52,160.51,0.72]
[1752171662199,0.03,160.56,160.51,0.72]
[1752171662406,3.15378776,160.56,160.52,32.86]
[1752171662607,0.03,160.56,160.53,0.72]
[1752171662808,26.03,160.56,160.54,32.86]
[1752171663131,0.03,160.56,160.55,33.58]
[1752171663342,0.03,160.56,160.55,112.58]
[1752171663696,0.03,160.56,160.55,79.0]
[1752171664125,26.03,160.56,160.55,79.0]
[1752171664913,29.1682619,160.56,160.55,79.0]
[1752171665113,29.1682619,160.56,160.55,112.56]
[1752171665114,3.1682619,160.56,160.55,112.56]
[1752171665499,29.1682619,160.56,160.55,112.56]
[1752171666742,29.1682619,160.56,160.55,111.84]
[1752171667933,29.1682619,160.56,160.55,112.56]
[1752171667934,26.03,160.56,160.55,112.56]
[1752171668135,0.03,160.56,160.55,112.56]
[1752171673129,0.03,160.56,160.55,112.19858716]
[1752171677550,26.74,160.56,160.55,78.63858716]
[1752171677708,26.74,160.56,160.51,78.63858716]
[1752171677709,26.0,160.55,160.51,78.63858716]
[1752171677911,26.0,160.55,160.49,0.72]
[1752171677912,0.99432314,160.54,160.49,79.35858716]
[1752171678118,0.71,160.53,160.49,79.35858716]
[1752171678521,0.28432314,160.54,160.5,0.72]
[1752171678820,0.99432314,160.54,160.5,0.72]
[1752171679219,26.99432314,160.54,160.49,78.63858716]
[1752171679425,26.28432314,160.54,160.51,0.72]
[1752171679631,26.0,160.53,160.51,0.72]
[1752171679828,26.0,160.53,160.49,78.63858716]
[1752171680140,26.0,160.53,160.52,0.72]
[1752171680646,26.0,160.54,160.52,33.52]
[1752171680842,26.0,160.54,160.52,32.8]
[1752171681145,0.31432314,160.56,160.53,0.72]
[1752171681146,26.0,160.55,160.53,0.72]
[1752171681326,26.0,160.55,160.54,33.52]
[1752171681520,26.03,160.56,160.54,32.8]
[1752171681838,26.0,160.55,160.54,32.8]
[1752171682139,26.0,160.55,160.52,0.72]
[1752171682347,26.0,160.55,160.53,0.72]
[1752171682639,26.0,160.54,160.51,0.72]
[1752171683033,0.71,160.53,160.49,106.23858716]
[1752171683226,0.71,160.53,160.5,0.72]
[1752171683435,0.71,160.52,160.49,105.51858716]
[1752171683733,0.28432314,160.5,160.46,105.54858716]
[1752171683917,26.0,160.48,160.46,105.54858716]
[1752171684121,0.71,160.47,160.46,26.91]
[1752171684321,0.71,160.47,160.46,59.71]
[1752171684517,12.50817348,160.47,160.46,59.71]
[1752171684737,0.71,160.47,160.46,59.71]
[1752171685345,4.44901663,160.47,160.46,59.71]
[1752171685758,4.73333977,160.47,160.46,26.91]
[1752171685943,21.66018531,160.47,160.46,26.91]
[1752171686270,21.66018531,160.47,160.46,59.71]
[1752171686933,21.66018531,160.47,160.46,26.91]
[1752171687135,21.66018531,160.47,160.46,59.71]
[1752171687740,33.22743529,160.47,160.46,59.71]
[1752171689134,16.44275132,160.47,160.46,59.71]
[1752171690932,26.0,160.43,160.41,0.06]
[1752171691141,0.28432314,160.42,160.41,0.06]
[1752171691351,1.09648471,160.42,160.41,0.06]
[1752171691527,1.09648471,160.42,160.41,32.86]
[1752171693033,4.83666673,160.42,160.41,32.86]
[1752171693858,4.69450516,160.42,160.41,32.86]
[1752171694640,26.0,160.43,160.41,32.86]
[1752171695034,0.28432314,160.42,160.41,32.86]
[1752171695249,26.0,160.43,160.41,32.86]
[1752171695749,0.28432314,160.42,160.41,32.86]
[1752171697153,26.0,160.43,160.41,33.57]
[1752171697340,0.28432314,160.43,160.41,32.86]
[1752171697542,0.28432314,160.43,160.41,111.49858716]
[1752171697838,0.95432314,160.43,160.41,111.49858716]
[1752171698153,27.09648471,160.42,160.41,78.69858716]
[1752171698461,27.09648471,160.42,160.41,111.49858716]
[1752171699343,30.83666673,160.42,160.41,111.49858716]
[1752171699532,26.95432314,160.42,160.41,111.49858716]
[1752171699735,14.63704998,160.47,160.41,111.49858716]
[1752171699736,30.40979809,160.44,160.41,111.49858716]
[1752171700459,0.81216157,160.43,160.41,111.49858716]
[1752171700771,0.95432314,160.43,160.41,111.49858716]
[1752171700945,26.28432314,160.42,160.41,111.49858716]
[1752171701148,4.69450516,160.42,160.41,111.49858716]
[1752171701664,30.83666673,160.42,160.41,111.49858716]
[1752171703348,30.83666673,160.42,160.41,32.86]
[1752171703547,33.87156673,160.42,160.41,32.84]
[1752171704657,50.6562507,160.42,160.41,32.84]
[1752171705042,30.02936868,160.41,160.39,0.1]
[1752171705242,26.0,160.3,160.29,0.1]
[1752171705550,26.0,160.3,160.29,32.88]
[1752171705855,26.95432314,160.3,160.29,32.88]
[1752171706059,46.89846868,160.3,160.29,0.1]
[1752171706568,46.89846868,160.3,160.29,32.88]
[1752171707263,29.30162314,160.3,160.29,32.88]
[1752171707469,7.04460504,160.3,160.29,32.88]
[1752171707840,36.19338246,160.3,160.29,32.88]
[1752171708156,6.45040056,160.3,160.29,32.88]
[1752171708342,29.53407806,160.34,160.29,33.59]
[1752171708343,3.252,160.34,160.29,33.59]
[1752171708544,3.252,160.34,160.3,0.71]
[1752171708750,3.252,160.34,160.31,0.71]
[1752171708951,26.0,160.33,160.31,0.71]
[1752171709468,26.0,160.32,160.31,0.71]
[1752171709969,6.34214329,160.34,160.31,0.71]
[1752171710159,26.0,160.32,160.31,0.71]
[1752171711471,26.0,160.32,160.31,33.51]
[1752171712260,26.0,160.32,160.31,111.57998716]
[1752171712680,26.0,160.34,160.31,111.57998716]
[1752171712847,26.0,160.34,160.32,0.71]
[1752171713176,26.0,160.34,160.33,0.71]
[1752171713362,26.67,160.36,160.33,78.06998716]
[1752171713558,26.67,160.36,160.34,32.78]
[1752171713752,29.79663193,160.36,160.33,78.06998716]
[1752171714471,26.0,160.34,160.33,78.06998716]
[1752171714671,26.95432314,160.34,160.33,78.06998716]
[1752171714978,1.09648471,160.34,160.33,78.06998716]
[1752171715280,1.09648471,160.34,160.33,110.84998716]
[1752171715451,4.83853285,160.34,160.33,110.84998716]
[1752171715654,0.28432314,160.33,160.29,0.1]
[1752171715955,0.67,160.32,160.29,0.1]
[1752171716755,0.67,160.31,160.29,0.1]
[1752171717067,0.95432314,160.3,160.29,0.1]
[1752171717270,26.95432314,160.3,160.29,0.1]
[1752171717478,21.62415058,160.3,160.29,0.1]
[1752171717698,0.14216157,160.29,160.28,0.06]
[1752171717856,0.28432314,160.25,160.16,0.71]
[1752171718059,0.14216157,160.24,160.23,32.78]
[1752171718361,26.28432314,160.25,160.23,32.78]
[1752171718560,16.0499,160.28,160.23,33.49]
[1752171718561,26.0,160.27,160.23,33.49]
[1752171718869,26.28432314,160.27,160.23,33.49]
[1752171719067,26.28432314,160.27,160.24,0.71]
[1752171720379,4.71821162,160.27,160.23,32.78]
[1752171720553,4.71821162,160.27,160.23,33.49]
[1752171721469,4.02821162,160.27,160.23,33.49]
[1752171721777,29.1399,160.28,160.24,0.71]
[1752171721972,26.0,160.29,160.24,78.77998716]
[1752171722277,0.69,160.28,160.24,78.06998716]
[1752171722480,26.0,160.29,160.25,0.71]
[1752171722660,26.0,160.29,160.26,32.78]
[1752171722855,26.0,160.29,160.27,0.71]
[1752171723171,6.83978514,160.32,160.28,0.71]
[1752171723362,26.0,160.29,160.28,0.71]
[1752171723563,26.0,160.29,160.28,32.78]
[1752171724862,26.0,160.29,160.28,33.49]
[1752171726558,26.0,160.29,160.28,32.78]
[1752171727772,26.0,160.29,160.28,33.49]
[1752171728078,2.145,160.2,160.19,78.16998716]
[1752171728388,2.145,160.2,160.19,32.88]
[1752171728763,1.135,160.2,160.19,51.15716868]
[1752171730066,26.0,160.29,160.2,17.21116868]
[1752171730274,26.0,160.29,160.2,241.58115584]
[1752171730886,7.52975247,160.32,160.2,241.58115584]
[1752171730887,26.0,160.31,160.2,241.58115584]
[1752171731066,26.0,160.3,160.2,251.38689671]
[1752171731266,0.69,160.34,160.23,0.28432314]
[1752171731478,0.69,160.34,160.24,49.70684554]
[1752171731479,4.43209492,160.34,160.24,49.70684554]
[1752171732196,31.24070854,160.41,160.27,9.80574087]
[1752171732197,0.69,160.39,160.27,9.80574087]
[1752171732377,0.69,160.43,160.35,0.14216157]
[1752171732699,3.0038,160.45,160.38,0.14216157]
[1752171732865,0.2,160.49,160.41,0.14216157]
[1752171733076,26.0,160.47,160.42,45.1041]
[1752171733263,26.0,160.47,160.42,12.3241]
[1752171733463,26.69,160.47,160.43,32.78]
[1752171733711,0.69,160.47,160.43,32.78]
[1752171733883,26.0,160.48,160.43,32.78]
[1752171734082,26.0,160.47,160.43,32.78]
[1752171734382,0.2,160.49,160.43,32.78]
[1752171734583,26.2,160.49,160.43,32.78]
[1752171734783,26.0,160.48,160.43,32.78]
[1752171735174,26.2,160.49,160.43,32.78]
[1752171735376,26.0,160.48,160.43,32.78]
[1752171735676,26.0,160.47,160.43,32.78]
[1752171736773,26.2,160.49,160.44,16.78468397]
[1752171737286,0.2,160.49,160.45,0.14216157]
[1752171737596,0.2,160.49,160.46,32.76]
[1752171740593,0.2,160.49,160.48,0.28432314]
[1752171740768,0.2,160.49,160.48,39.18210955]
[1752171741373,0.2,160.49,160.48,29.37636868]
[1752171741573,0.89,160.49,160.44,12.1652]
[1752171741772,0.2,160.49,160.45,32.74]
[1752171742377,0.89,160.49,160.45,32.74]
[1752171742580,0.69,160.48,160.45,32.74]
[1752171742901,0.2,160.49,160.45,32.74]
[1752171744570,0.89,160.49,160.45,32.74]
[1752171745111,0.69,160.48,160.45,32.74]
[1752171745283,0.89,160.49,160.45,32.74]
[1752171746180,0.69,160.48,160.4,12.1652]
[1752171746492,0.69,160.48,160.41,32.74]
[1752171746493,0.97432314,160.48,160.41,32.74]
[1752171746673,4.71313026,160.48,160.42,32.74]
[1752171746876,4.71313026,160.48,160.43,32.74]
[1752171747181,0.69,160.47,160.43,32.74]
[1752171747384,0.67,160.46,160.43,32.74]
[1752171747997,0.67,160.45,160.43,32.74]
[1752171748173,0.67,160.45,160.44,32.74]
[1752171748588,26.67,160.45,160.44,32.74]
[1752171750281,3.0645,160.47,160.44,32.74]
[1752171750602,3.7345,160.47,160.44,32.74]
[1752171750799,26.0,160.46,160.44,32.74]
[1752171752002,26.0,160.47,160.44,32.74]
[1752171752394,0.2,160.49,160.44,32.74]
[1752171752395,26.0,160.48,160.44,32.74]
[1752171753384,26.2,160.49,160.44,32.74]
[1752171754307,26.87,160.49,160.44,32.74]
[1752171755506,26.2,160.49,160.44,32.74]
[1752171756505,0.2,160.49,160.44,32.74]
[1752171756681,26.2,160.49,160.44,32.74]
[1752171756881,26.87,160.49,160.44,32.74]
[1752171757308,0.67,160.48,160.41,78.06998716]
[1752171757817,26.0,160.43,160.41,78.06998716]
[1752171758127,0.67,160.42,160.37,78.06998716]
[1752171758415,0.67,160.42,160.38,32.72]
[1752171758912,0.67,160.42,160.37,78.06998716]
[1752171759210,29.8616,160.46,160.39,32.72]
[1752171759504,26.0,160.45,160.39,110.78998716]
[1752171760004,0.28432314,160.48,160.4,16.92684554]
[1752171760005,26.0,160.47,160.4,16.92684554]
[1752171760818,0.67,160.48,160.4,17.55028693]
[1752171761108,0.2,160.49,160.42,16.92684554]
[1752171761322,26.2,160.49,160.43,32.72]
[1752171765412,0.2,160.49,160.43,32.72]
[1752171765920,0.2,160.49,160.44,16.92684554]
[1752171769433,0.2,160.49,160.44,17.5501315]
[1752171769634,0.2,160.49,160.46,16.92684554]
[1752171769813,0.2,160.49,160.48,16.92684554]
[1752171770011,0.2,160.49,160.48,94.9968327]
[1752171771841,0.2,160.49,160.48,16.92684554]
[1752171774116,0.2,160.49,160.48,94.9968327]
[1752171776013,0.2,160.49,160.48,78.06998716]
[1752171776340,0.2,160.49,160.48,127.55467113]
[1752171776543,0.2,160.49,160.48,127.6968327]
[1752171780032,0.2,160.49,160.48,94.9968327]
[1752171780210,0.2,160.49,160.48,78.06998716]
[1752171780434,0.2,160.49,160.48,127.6768327]
[1752171781228,0.91,160.49,160.48,110.74998716]
[1752171781540,0.91,160.49,160.48,78.06998716]
[1752171781746,26.91,160.49,160.48,78.06998716]
[1752171782042,4.64869498,160.49,160.47,26.9]
[1752171782240,0.71,160.48,160.41,26.9]
[1752171783047,26.0,160.47,160.41,26.9]
[1752171783252,26.71,160.47,160.41,26.9]
[1752171783453,26.71,160.47,160.42,32.68]
[1752171783621,0.71,160.46,160.41,26.9]
[1752171783816,0.71,160.45,160.42,32.68]
[1752171784038,0.71,160.44,160.43,32.68]
[1752171784828,30.2229136,160.49,160.43,32.68]
[1752171785033,0.71,160.46,160.43,32.68]
[1752171785250,0.71,160.45,160.43,32.68]
[1752171786053,0.2,160.49,160.43,32.68]
[1752171786259,26.0,160.48,160.43,32.68]
[1752171786548,0.71,160.47,160.43,32.68]
[1752171786753,0.71,160.47,160.41,26.9]
[1752171786920,0.99432314,160.47,160.41,26.9]
[1752171787263,4.73339609,160.47,160.42,32.68]
[1752171787429,0.71,160.46,160.42,32.68]
[1752171788441,0.71,160.46,160.41,26.9]
[1752171788641,0.71,160.46,160.42,32.68]
[1752171789852,0.71,160.46,160.41,26.9]
[1752171790038,0.71,160.46,160.43,32.68]
[1752171790751,26.0,160.44,160.41,26.9]
[1752171790952,0.71,160.43,160.42,32.68]
[1752171791903,0.71,160.43,160.41,26.9]
[1752171792055,26.0,160.44,160.41,26.9]
[1752171792366,26.0,160.43,160.41,26.9]
[1752171792576,0.71,160.42,160.41,26.9]
[1752171792939,0.99432314,160.42,160.41,59.58]
[1752171793269,0.99432314,160.42,160.41,26.9]
[1752171793651,0.71,160.42,160.41,59.58]
[1752171793857,26.0,160.43,160.41,59.58]
[1752171794163,0.71,160.42,160.41,59.58]
[1752171797165,26.71,160.44,160.41,59.58]
[1752171797356,26.71,160.43,160.41,59.58]
[1752171797552,26.0,160.43,160.41,59.58]
[1752171797756,3.875,160.45,160.41,59.58]
[1752171797958,3.165,160.45,160.41,59.58]
[1752171798180,3.165,160.45,160.41,137.64998716]
[1752171798488,3.875,160.45,160.41,137.64998716]
[1752171798686,3.165,160.45,160.41,137.64998716]
[1752171798871,3.875,160.45,160.41,137.64998716]
[1752171799664,26.71,160.47,160.41,137.64998716]
[1752171801264,26.0,160.47,160.41,137.64998716]
[1752171801470,26.71,160.46,160.41,137.64998716]
[1752171801695,0.74,160.45,160.41,137.64998716]
[1752171801990,0.03,160.45,160.41,137.64998716]
[1752171802489,0.74,160.45,160.41,137.64998716]
[1752171803091,0.71,160.44,160.41,104.96998716]
[1752171803275,0.71,160.43,160.41,104.96998716]
[1752171803480,0.71,160.43,160.42,32.68]
[1752171804078,0.71,160.43,160.42,110.74998716]
[1752171804403,0.74,160.45,160.42,110.74998716]
[1752171804571,0.03,160.45,160.42,110.74998716]
[1752171804779,0.71,160.44,160.42,110.74998716]
[1752171805595,0.03,160.45,160.42,110.74998716]
[1752171806493,0.71,160.44,160.43,32.68]
[1752171807195,30.73403892,160.44,160.41,104.96998716]
[1752171807387,26.0,160.42,160.41,104.96998716]
[1752171807589,26.71,160.42,160.41,137.64998716]
[1752171808199,26.0,160.42,160.41,137.64998716]
[1752171809290,3.76949823,160.45,160.41,137.64998716]
[1752171809291,0.03,160.45,160.41,137.64998716]
[1752171809675,26.71,160.44,160.41,137.64998716]
[1752171810283,0.71,160.43,160.41,137.64998716]
[1752171810483,26.0,160.44,160.41,137.64998716]
[1752171810684,0.74,160.45,160.41,137.64998716]
[1752171811094,0.03,160.45,160.41,137.64998716]
[1752171811406,0.74,160.45,160.41,137.64998716]
[1752171812413,26.71,160.44,160.41,137.64998716]
[1752171813105,0.71,160.43,160.41,137.64998716]
[1752171813306,26.0,160.44,160.41,137.64998716]
[1752171813307,0.71,160.42,160.41,137.64998716]
[1752171813493,0.71,160.42,160.41,104.96998716]
[1752171813698,0.71,160.42,160.41,137.62998716]